bitfinex-derivatives/quotes_SOLF0:USTF0_20260108
["timestamp","ask_amount","ask_price","bid_price","bid_amount"]
[1767909927516,10.20984632,139.66,139.59,10.19953917]
[1767909927707,3.75904632,139.65,139.56,3.74603917]
[1767909928615,3.75904632,139.65,139.59,0.04952511]
[1767909931618,10.21014632,139.65,139.59,6.50332511]
[1767909932419,10.21014632,139.65,139.59,0.04952511]
[1767909932620,10.18154104,139.64,139.59,0.04952511]
[1767909933015,10.18154104,139.64,139.58,3.74603917]
[1767909933420,10.18184104,139.63,139.56,3.71966661]
[1767909933720,10.18184104,139.63,139.6,0.0484794]
[1767909933923,0.04752519,139.61,139.56,3.71966661]
[1767909934619,0.04752519,139.61,139.56,10.17486661]
[1767909935726,0.04752519,139.61,139.56,3.71966661]
[1767909937724,0.04752519,139.61,139.56,10.17486661]
[1767909941328,6.4535,139.6,139.54,30.69397592]
[1767909941625,3.77736623,139.61,139.54,3.71966661]
[1767909942021,101.34670124,140.0,139.82,3.71966661]
[1767909942223,101.34670124,140.0,139.84,100.2145]
[1767909942224,1.24410124,140.0,139.84,100.2145]
[1767909942427,2.73940982,139.98,139.84,3.71966661]
[1767909942622,2.73940982,139.98,139.84,103.93276661]
[1767909942929,84.68,139.97,139.84,103.93346661]
[1767909943228,84.68,139.97,139.85,5.19403503]
[1767909943423,100.0904,140.02,139.85,5.19403503]
[1767909943424,14.21583416,140.03,139.88,100.1839]
[1767909943631,2.73940982,140.01,139.89,105.36913503]
[1767909943936,3.72984104,140.0,139.9,5.19403503]
[1767909944224,3.72984104,140.0,139.88,103.90356661]
[1767909944225,88.38984104,139.99,139.91,5.19403503]
[1767909944435,3.72984104,140.02,139.92,109.03160869]
[1767909944727,16.95524398,140.03,139.92,3.71966661]
[1767909944728,88.38984104,140.01,139.92,3.71966661]
[1767909945133,3.72984104,140.0,139.89,3.71966661]
[1767909945521,3.72984104,140.0,139.9,5.1462422]
[1767909945719,3.72984104,140.0,139.91,8.86483396]
[1767909945924,84.64,139.99,139.92,5.14427117]
[1767909946227,3.72984104,140.0,139.91,3.71966661]
[1767909946428,84.62,140.01,139.92,3.71966661]
[1767909946627,84.62,140.01,139.93,3.71966661]
[1767909947425,14.21583416,140.03,139.93,3.71966661]
[1767909947426,84.62,140.0,139.93,3.71966661]
[1767909948344,84.62,140.0,139.9,107.76178748]
[1767909948345,88.34984104,140.0,139.9,3.71966661]
[1767909949027,3.72984104,140.0,139.9,3.71966661]
[1767909949537,84.58,139.99,139.9,3.71966661]
[1767909949834,84.58,139.98,139.9,3.71966661]
[1767909950230,3.72984104,140.0,139.9,3.71966661]
[1767909950435,84.58,139.99,139.9,3.71966661]
[1767909951840,3.72984104,139.98,139.9,3.71966661]
[1767909952535,3.72984104,139.94,139.83,3.71966661]
[1767909952735,84.56,139.93,139.83,3.71966661]
[1767909954140,3.72984104,139.94,139.83,3.71966661]
[1767909954640,84.54,139.93,139.83,3.71966661]
[1767909954835,3.72984104,139.94,139.83,3.71966661]
[1767909955043,84.54,139.92,139.83,3.71966661]
[1767909955540,88.26984104,139.92,139.83,3.71966661]
[1767909955943,84.54,139.91,139.83,3.71966661]
[1767909956640,3.72984104,139.92,139.83,3.71966661]
[1767909956840,84.54,139.9,139.83,3.71966661]
[1767909957436,83.50838908,139.9,139.83,3.71966661]
[1767909957741,3.72984104,139.92,139.83,3.71966661]
[1767909958045,84.54,139.91,139.83,3.71966661]
[1767909960641,84.52,139.9,139.83,3.71966661]
[1767909960944,3.72984104,139.95,139.85,3.71966661]
[1767909961147,3.72984104,139.93,139.8,3.71966661]
[1767909961648,10.16834104,139.93,139.82,3.71966661]
[1767909961846,3.72984104,139.92,139.82,3.71966661]
[1767909962443,3.83271975,139.91,139.82,3.71966661]
[1767909964340,84.52,139.9,139.82,3.71966661]
[1767909964945,3.83271975,139.94,139.83,3.59749887]
[1767909965249,3.83271975,139.95,139.84,3.59749887]
[1767909965452,84.52,139.94,139.84,3.59749887]
[1767909966150,3.83271975,139.95,139.84,3.59749887]
[1767909966444,84.52,139.94,139.84,3.59749887]
[1767909966644,84.52,139.94,139.85,10.08801051]
[1767909967348,84.52,139.93,139.86,3.64641051]
[1767909967551,84.52,139.92,139.86,3.64641051]
[1767909968747,3.83271975,139.95,139.86,3.64641051]
[1767909968948,84.52,139.94,139.86,3.64641051]
[1767909969744,84.52,139.93,139.86,3.64641051]
[1767909969949,84.52,139.92,139.86,3.64641051]
[1767909970353,3.83271975,139.95,139.86,3.64641051]
[1767909970554,84.52,139.94,139.86,3.64641051]
[1767909971241,3.83271975,139.95,139.86,3.64641051]
[1767909971441,84.5,139.94,139.86,3.64641051]
[1767909972037,41.57913361,139.94,139.86,3.64641051]
[1767909972239,3.66619597,139.94,139.86,3.64641051]
[1767909972445,84.5,139.93,139.86,3.64641051]
[1767909972845,3.66619597,139.92,139.85,6.4416]
[1767909973047,3.66619597,139.92,139.83,10.08911051]
[1767909974455,3.66619597,139.92,139.84,6.4422]
[1767909974656,3.66619597,139.92,139.83,3.64641051]
[1767909974853,3.66619597,139.92,139.8,3.64641051]
[1767909975652,3.66619597,139.91,139.81,6.4433]
[1767909978063,3.66619597,139.91,139.85,0.05033901]
[1767909978261,0.05361194,139.87,139.85,0.05033901]
[1767909978457,84.52,139.86,139.81,6.4433]
[1767909979354,1.50193416,140.03,139.98,3.64641051]
[1767909979556,4.67817398,140.15,139.98,103.75651051]
[1767909979756,7.67195714,140.13,140.0,100.0986]
[1767909980060,0.05132959,140.08,140.02,6.4338]
[1767909980257,84.5,140.07,140.01,100.0919]
[1767909980558,11.10657398,140.15,140.0,3.64641051]
[1767909980559,106.09447398,140.15,140.0,3.64641051]
[1767909980761,104.71827398,140.09,139.94,3.64641051]
[1767909981060,4.67817398,140.07,139.95,100.1329]
[1767909981260,3.66619597,140.06,139.95,100.1329]
[1767909981458,3.66619597,140.06,139.97,6.436]
[1767909981849,3.66619597,140.06,140.0,100.0994]
[1767909981850,9.597e-05,140.06,140.0,100.0994]
[1767909982465,9.597e-05,140.06,139.98,100.1121]
[1767909982466,9.597e-05,140.06,139.99,100.1061]
[1767909982661,104.67277398,140.15,140.0,100.0957]
[1767909982861,84.5,140.14,140.0,100.0957]
[1767909983559,6.4292,140.13,140.01,6.4343]
[1767909983758,6.4292,140.13,140.0,100.0957]
[1767909984066,0.11069893,140.12,140.0,100.0957]
[1767909984261,0.11069893,140.12,140.04,6.433]
[1767909984462,0.0470398,140.1,140.04,6.433]
[1767909986369,84.48,140.09,140.04,6.433]
[1767909986558,0.0470398,140.1,140.04,6.433]
[1767909986761,84.48,140.09,140.05,6.4323]
[1767909987072,84.48,140.09,140.0,100.0957]
[1767909987368,84.48,140.09,140.01,11.57841585]
[1767909987566,84.48,140.09,140.01,6.4342]
[1767909987868,84.48,140.09,139.99,3.64641051]
[1767909988068,84.48,140.09,140.0,5.14444848]
[1767909988268,84.48,140.09,140.01,5.14444848]
[1767909988570,84.48,140.09,139.99,10.08161051]
[1767909988771,84.48,140.09,140.0,5.14284371]
[1767909988968,84.48,140.09,140.01,5.14284371]
[1767909989168,84.48,140.09,139.99,3.64641051]
[1767909989364,84.48,140.09,140.0,5.14189406]
[1767909989565,4.67817398,140.12,139.97,3.64641051]
[1767909989766,84.46,140.08,139.98,5.13984425]
[1767909989971,84.46,140.08,139.99,5.13984425]
[1767909990272,84.46,140.08,140.0,5.13984425]
[1767909990471,84.46,140.08,139.99,6.4352]
[1767909990669,84.46,140.08,140.0,5.13814931]
[1767909990971,84.46,140.08,139.99,6.4352]
[1767909991167,84.46,140.08,140.0,5.13813597]
[1767909991366,84.46,140.08,140.03,0.04649329]
[1767909991567,84.46,140.07,139.99,6.4352]
[1767909991769,0.04562817,140.05,140.0,5.13665917]
[1767909992069,0.04562817,140.05,139.99,6.4352]
[1767909992269,0.04562817,140.05,140.0,5.13718929]
[1767909992473,0.04562817,140.05,139.97,10.08251051]
[1767909992670,0.04562817,140.05,139.98,5.13620751]
[1767909992977,0.04562817,140.05,139.99,5.13620751]
[1767909993273,0.04562817,140.05,139.97,10.08251051]
[1767909993470,0.04562817,140.05,139.98,5.13577493]
[1767909993775,0.04562817,140.05,139.99,5.13577493]
[1767909993973,0.04562817,140.05,139.97,10.08251051]
[1767909994175,0.04562817,140.05,139.98,5.13561504]
[1767909994480,0.04562817,140.05,139.94,8.78820915]
[1767909994774,0.04562817,140.05,139.95,5.13803945]
[1767909994974,184.513,140.07,139.96,5.13803945]
[1767909995273,0.05228351,140.01,139.94,8.78820915]
[1767909995469,84.44,140.0,139.95,11.57494506]
[1767909995677,84.44,140.0,139.96,5.13784506]
[1767909995972,84.44,140.0,139.91,2.35090915]
[1767909996179,84.44,140.0,139.92,5.14137977]
[1767909996366,84.44,140.0,139.91,8.78970915]
[1767909996675,4.67817398,140.03,139.91,8.78970915]
[1767909996676,4.67817398,140.03,139.92,11.58031941]
[1767909996872,0.05026006,139.97,139.93,5.14191941]
[1767909997172,48.8424,139.96,139.92,6.4384]
[1767909997472,9.222e-05,139.96,139.93,5.14097662]
[1767909997770,9.222e-05,139.96,139.92,6.4384]
[1767909997974,9.222e-05,139.96,139.93,5.14098057]
[1767909998174,9.222e-05,139.96,139.92,6.4384]
[1767909998376,9.222e-05,139.96,139.93,5.14120542]
[1767909998575,9.222e-05,139.96,139.92,6.4384]
[1767909998776,9.222e-05,139.96,139.93,5.14120542]
[1767909998967,9.222e-05,139.96,139.92,6.4384]
[1767909999168,9.222e-05,139.96,139.93,5.14120542]
[1767909999475,9.222e-05,139.96,139.92,6.4384]
[1767909999771,9.222e-05,139.96,139.93,5.14188251]
[1767909999975,9.222e-05,139.96,139.92,6.4384]
[1767910000176,9.222e-05,139.96,139.93,5.14179767]
[1767910000473,9.222e-05,139.96,139.92,6.4384]
[1767910000674,9.222e-05,139.96,139.93,5.14239626]
[1767910000874,9.222e-05,139.96,139.92,6.4384]
[1767910001075,9.222e-05,139.96,139.93,5.14239626]
[1767910001276,0.05026006,139.97,139.92,6.4384]
[1767910001479,0.05026006,139.97,139.93,5.14398103]
[1767910001672,0.05026006,139.97,139.92,6.4384]
[1767910001876,73.5625,139.96,139.93,5.14430183]
[1767910002071,0.05026006,139.97,139.92,6.4384]
[1767910002377,73.559,139.96,139.92,6.4384]
[1767910002776,73.559,139.96,139.91,2.35090915]
[1767910003076,84.46,139.95,139.91,2.35090915]
[1767910003867,84.46,139.95,139.9,6.4392]
[1767910004072,84.46,139.95,139.88,8.79130915]
[1767910004271,84.46,139.95,139.89,5.14904847]
[1767910004573,84.46,139.95,139.88,8.79130915]
[1767910004764,0.05443632,139.93,139.89,5.14995512]
[1767910004966,0.05443632,139.93,139.88,8.79130915]
[1767910005176,0.05443632,139.93,139.89,5.14995512]
[1767910005378,0.05443632,139.93,139.88,8.79130915]
[1767910005570,0.05443632,139.93,139.89,5.15098406]
[1767910005766,0.05443632,139.93,139.88,8.79130915]
[1767910008679,0.05443632,139.93,139.89,5.1511897]
[1767910008880,0.05443632,139.93,139.88,8.79130915]
[1767910009084,0.05443632,139.93,139.89,5.15117881]
[1767910009380,0.05443632,139.93,139.88,8.79130915]
[1767910009581,0.05443632,139.93,139.89,5.15184065]
[1767910009780,0.05443632,139.93,139.88,8.79130915]
[1767910009981,0.05443632,139.93,139.86,6.441]
[1767910010288,0.05443632,139.93,139.87,5.15309281]
[1767910010474,0.05443632,139.93,139.88,5.15309281]
[1767910010671,0.05443632,139.93,139.84,6.31585318]
[1767910010985,0.05443632,139.93,139.83,2.35090915]
[1767910011187,6.4397,139.9,139.83,2.35090915]
[1767910011385,84.48,139.89,139.83,2.35090915]
[1767910011687,84.52981741,139.89,139.83,2.35090915]
[1767910014088,84.48,139.88,139.83,2.35090915]
[1767910014485,0.04981741,139.89,139.83,2.35090915]
[1767910014683,84.48,139.88,139.83,2.35090915]
[1767910014986,84.48,139.88,139.8,2.35090915]
[1767910015185,84.48,139.88,139.81,5.15429712]
[1767910015389,84.48,139.88,139.8,2.35090915]
[1767910015891,0.04884506,139.85,139.8,2.35090915]
[1767910016090,0.04884506,139.85,139.76,2.35090915]
[1767910016391,0.04884506,139.85,139.77,7.50501793]
[1767910016592,84.48,139.88,139.78,5.15410878]
[1767910016778,6.4415,139.86,139.79,5.15410878]
[1767910016991,0.05356661,139.82,139.77,2.35090915]
[1767910017179,84.48,139.81,139.78,5.15191599]
[1767910017387,84.48,139.81,139.79,5.15191599]
[1767910017696,84.48,139.81,139.77,2.35090915]
[1767910017891,84.48,139.81,139.78,5.15052644]
[1767910018193,84.48,139.81,139.79,5.15052644]
[1767910018392,84.48,139.81,139.77,2.35090915]
[1767910018592,84.48,139.81,139.78,5.14915122]
[1767910018794,84.48,139.81,139.77,2.35090915]
[1767910019095,84.48,139.81,139.78,5.14870841]
[1767910019292,84.48,139.81,139.77,2.35090915]
[1767910021592,0.05356661,139.82,139.73,2.35090915]
[1767910021784,84.52,139.81,139.75,2.35090915]
[1767910022700,0.04594439,139.79,139.75,2.35090915]
[1767910023102,84.52,139.8,139.75,2.35090915]
[1767910023504,0.05439223,139.78,139.75,2.35090915]
[1767910024101,84.52,139.8,139.75,2.40595794]
[1767910026105,104.87517398,139.87,139.75,2.40595794]
[1767910026316,84.54,139.86,139.75,2.40595794]
[1767910026507,104.87517398,139.87,139.75,2.35090915]
[1767910026814,84.54,139.86,139.77,0.32037404]
[1767910027015,84.54,139.86,139.79,0.04769434]
[1767910028712,6.442,139.85,139.79,0.04769434]
[1767910031216,4.67817398,139.9,139.79,0.04769434]
[1767910031217,6.4413,139.87,139.79,0.04769434]
[1767910031421,84.54,139.86,139.79,0.04769434]
[1767910031617,84.54,139.86,139.77,6.76587404]
[1767910032122,84.54,139.86,139.81,0.04841783]
[1767910032624,90.9815,139.86,139.81,0.04841783]
[1767910035322,84.54,139.86,139.81,0.04841783]
[1767910036325,2.73207508,139.83,139.75,0.32037404]
[1767910036529,84.54,139.82,139.75,0.32037404]
[1767910037826,0.04961221,139.8,139.75,0.32037404]
[1767910039432,0.04961221,139.8,139.76,5.1601498]
[1767910039724,0.04961221,139.8,139.73,6.76747404]
[1767910039929,0.04961221,139.8,139.74,5.16132517]
[1767910040131,100.0162,140.12,139.97,0.32037404]
[1767910040327,100.0162,140.12,139.91,100.1643]
[1767910040328,2.73207508,140.06,139.93,0.32037404]
[1767910040518,84.56,140.05,139.94,5.46231294]
[1767910040722,84.56,140.04,139.95,5.46231294]
[1767910040928,84.56,140.04,139.96,5.1419389]
[1767910041129,2.73207508,140.03,139.92,0.32037404]
[1767910041327,2.73207508,140.03,139.93,5.13798874]
[1767910041537,2.73207508,140.03,139.89,191.15972945]
[1767910041538,2.73207508,139.98,139.89,0.32037404]
[1767910041730,87.29207508,139.98,139.9,5.14356339]
[1767910041926,87.29207508,139.98,139.91,5.14356339]
[1767910042125,87.29207508,139.98,139.89,6.76007404]
[1767910042433,87.29207508,139.98,139.9,5.14355628]
[1767910042728,87.29207508,139.98,139.89,6.76007404]
[1767910042729,84.56,139.98,139.89,6.76007404]
[1767910043032,84.56,139.98,139.86,6.76137404]
[1767910043334,84.56,139.98,139.87,5.14709366]
[1767910043533,84.56,139.98,139.88,5.14709366]
[1767910043734,84.56,139.98,139.86,6.76137404]
[1767910043934,84.56,139.98,139.87,5.14790791]
[1767910044231,84.56,139.98,139.88,5.14790791]
[1767910044429,84.56,139.98,139.86,6.76137404]
[1767910044631,84.56,139.98,139.87,5.15004502]
[1767910044831,84.56,139.98,139.88,5.15004502]
[1767910045031,84.56,139.98,139.86,6.76137404]
[1767910045338,84.56,139.98,139.87,5.15027465]
[1767910045533,84.56,139.98,139.88,5.15027465]
[1767910045736,84.56,139.98,139.86,6.76137404]
[1767910045933,84.56,139.98,139.87,5.15146688]
[1767910046124,84.56,139.98,139.88,5.15146688]
[1767910046435,84.56,139.98,139.86,6.76137404]
[1767910046639,84.56,139.98,139.87,5.15384326]
[1767910046841,84.56,139.98,139.88,5.15384326]
[1767910047139,84.56,139.98,139.86,6.76137404]
[1767910047336,84.56,139.98,139.87,5.15408032]
[1767910047636,84.56,139.98,139.88,5.15408032]
[1767910047937,84.56,139.98,139.89,5.15525082]
[1767910048137,84.56,139.98,139.86,6.76137404]
[1767910048435,84.56,139.98,139.87,5.15491091]
[1767910048634,84.56,139.98,139.88,5.15491091]
[1767910048934,84.56,139.98,139.89,5.15491091]
[1767910049135,84.56,139.98,139.86,6.76137404]
[1767910049338,84.56,139.98,139.87,5.1564263]
[1767910049528,84.56,139.98,139.88,5.1564263]
[1767910049724,84.56,139.98,139.89,5.1564263]
[1767910049937,84.56,139.98,139.86,106.96107404]
[1767910050142,84.56,139.98,139.87,11.59968676]
[1767910050327,84.56,139.98,139.92,0.04521174]
[1767910050532,7.59790698,139.99,139.92,0.04521174]
[1767910050740,84.52,139.98,139.92,0.04521174]
[1767910053541,84.52,139.97,139.92,0.04521174]
[1767910055242,84.52,139.97,139.88,0.32037404]
[1767910055441,84.52,139.97,139.89,5.15544512]
[1767910055642,84.52,139.97,139.9,5.15544512]
[1767910055842,84.52,139.97,139.88,0.32037404]
[1767910056041,84.52,139.97,139.89,5.15544512]
[1767910056241,84.52,139.97,139.9,5.15544512]
[1767910056443,84.52,139.97,139.88,0.32037404]
[1767910056647,84.52,139.97,139.89,5.15430895]
[1767910056942,0.0469318,139.95,139.9,5.15430895]
[1767910057142,84.5,139.94,139.88,0.32037404]
[1767910057346,84.5,139.94,139.89,5.15397759]
[1767910057533,84.5,139.94,139.9,5.15381092]
[1767910057738,84.5,139.94,139.88,0.32037404]
[1767910057940,84.5,139.94,139.89,5.15428524]
[1767910058248,84.5,139.94,139.88,0.32037404]
[1767910058445,84.5,139.94,139.89,5.15290773]
[1767910058751,84.5,139.94,139.88,0.32037404]
[1767910058937,84.5,139.94,139.89,5.15290773]
[1767910059136,84.5,139.94,139.88,0.32037404]
[1767910059343,84.5,139.94,139.89,5.15279402]
[1767910059644,84.5,139.94,139.88,0.32037404]
[1767910059841,84.5,139.94,139.89,5.15244523]
[1767910060044,84.5,139.94,139.88,0.32037404]
[1767910060244,84.5,139.94,139.89,5.15250773]
[1767910060446,84.5,139.94,139.88,0.32037404]
[1767910060644,84.5,139.94,139.89,5.15182538]
[1767910060845,84.5,139.94,139.88,0.32037404]
[1767910061045,84.5,139.94,139.89,5.15180357]
[1767910061243,84.5,139.94,139.88,0.32037404]
[1767910061445,84.5,139.94,139.89,5.15089329]
[1767910061747,84.5,139.94,139.88,0.32037404]
[1767910061940,84.5,139.94,139.89,5.15089329]
[1767910062140,84.5,139.94,139.88,0.32037404]
[1767910062342,84.5,139.94,139.89,5.15101484]
[1767910062548,84.5,139.94,139.88,0.32037404]
[1767910062845,84.5,139.94,139.89,5.15051734]
[1767910063048,84.5,139.94,139.87,6.4407]
[1767910063243,84.5,139.94,139.88,5.15128421]
[1767910063449,84.5,139.94,139.87,6.4407]
[1767910063651,84.5,139.94,139.88,5.15079899]
[1767910063850,84.5,139.94,139.87,6.75410365]
[1767910064049,84.5,139.94,139.88,5.15079899]
[1767910064050,0.04759193,139.92,139.88,5.15079899]
[1767910064350,0.04759193,139.92,139.88,6.4403]
[1767910065449,0.04759193,139.92,139.89,5.15040469]
[1767910065641,0.04759193,139.92,139.88,6.4403]
[1767910066151,0.04759193,139.92,139.89,5.1506575]
[1767910066340,0.04759193,139.92,139.88,6.4403]
[1767910066541,0.04759193,139.92,139.89,5.15066146]
[1767910066741,0.04759193,139.92,139.88,6.4403]
[1767910066950,0.04759193,139.92,139.89,5.15099083]
[1767910067152,0.04759193,139.92,139.89,6.44]
[1767910067443,84.5,139.94,139.87,0.31340365]
[1767910067648,84.5,139.93,139.89,0.04656236]
[1767910067856,84.5,139.93,139.9,5.15136002]
[1767910068035,84.5,139.93,139.87,0.31340365]
[1767910068239,84.5,139.94,139.88,5.15206164]
[1767910068448,84.5,139.94,139.89,5.15206164]
[1767910068752,84.5,139.94,139.9,5.15206164]
[1767910068947,84.5,139.94,139.89,6.4398]
[1767910069247,84.5,139.94,139.9,5.15207212]
[1767910069449,84.5,139.94,139.9,0.04575962]
[1767910076259,84.5,139.94,139.91,5.16393693]
[1767910076556,84.5,139.94,139.9,0.04575962]
[1767910076754,2.72847213,140.03,139.92,0.31340365]
[1767910076955,84.5,140.02,139.93,5.47734058]
[1767910077258,84.5,140.02,139.94,5.16393693]
[1767910077455,84.5,140.02,139.95,5.16393693]
[1767910077656,84.5,140.02,139.93,0.31340365]
[1767910077852,84.5,140.02,139.94,5.1597711]
[1767910078058,84.5,140.02,139.95,5.1597711]
[1767910078358,84.5,140.02,139.93,0.31340365]
[1767910078659,90.9341,140.02,139.94,11.59774848]
[1767910078855,90.9341,140.02,139.95,5.16024848]
[1767910079056,90.9341,140.02,139.94,6.4375]
[1767910079259,90.9341,140.02,139.97,0.04750936]
[1767910079459,90.9341,140.02,139.94,6.4375]
[1767910079660,90.9341,140.02,139.95,5.16188552]
[1767910079964,90.9341,140.02,139.96,5.16188552]
[1767910080164,90.9341,140.02,139.94,6.4375]
[1767910080365,90.9341,140.02,139.95,11.60107712]
[1767910080659,6.4341,140.02,139.96,5.16387712]
[1767910080856,84.48,140.01,139.95,6.4372]
[1767910081046,84.48,140.01,139.96,5.16503457]
[1767910081247,84.48,140.01,139.95,6.4372]
[1767910081547,84.48,140.01,139.96,5.16670074]
[1767910081752,84.48,140.01,139.95,6.4372]
[1767910082061,0.04672333,139.99,139.96,5.16670076]
[1767910082262,0.04672333,139.99,139.97,5.16670076]
[1767910082563,0.04672333,139.99,139.95,6.4372]
[1767910082761,0.04672333,139.99,139.96,5.17469867]
[1767910083060,0.04672333,139.99,139.97,5.17469867]
[1767910083258,0.04672333,139.99,139.94,6.42402945]
[1767910083463,0.04672333,139.99,139.95,5.18073816]
[1767910083663,0.04672333,139.99,139.96,5.18073816]
[1767910083962,0.04672333,139.99,139.97,5.18073816]
[1767910084262,0.04672333,139.99,139.95,6.42402945]
[1767910084462,0.04672333,139.99,139.94,6.42402945]
[1767910086764,84.48,139.98,139.94,6.42402945]
[1767910087566,0.04672333,139.99,139.94,0.31831375]
[1767910087769,84.48,139.97,139.94,0.31831375]
[1767910090371,84.48,139.97,139.93,6.42402945]
[1767910093367,84.48,139.97,139.92,6.7423432]
[1767910093562,0.04672333,139.99,139.92,6.7423432]
[1767910093771,1.74493673,140.01,139.92,6.7423432]
[1767910093970,8.17943673,140.01,139.92,6.7423432]
[1767910094271,0.04610139,139.97,139.92,6.7423432]
[1767910096270,0.04610139,139.97,139.93,5.16580214]
[1767910096460,0.04610139,139.97,139.94,5.16580214]
[1767910096665,0.04610139,139.97,139.95,5.16580214]
[1767910096962,0.04610139,139.97,139.96,5.16580214]
[1767910102073,0.04610139,139.97,139.92,6.7423432]
[1767910102377,0.04610139,139.97,139.93,6.42402945]
[1767910102569,0.04610139,139.97,139.92,6.7423432]
[1767910103076,0.04610139,139.97,139.92,6.42402945]
[1767910103368,1.79103812,139.97,139.92,6.42402945]
[1767910104971,1.79103812,139.97,139.92,6.7423432]
[1767910105276,1.79103812,139.97,139.93,6.42402945]
[1767910105466,1.79103812,139.97,139.94,0.31831375]
[1767910105467,84.50610139,139.97,139.94,0.31831375]
[1767910105667,84.50610139,139.97,139.92,6.42402945]
[1767910105871,84.50610139,139.97,139.92,6.7423432]
[1767910106277,1.74493673,139.96,139.9,6.7423432]
[1767910106474,1.74493673,139.96,139.91,6.42402945]
[1767910106774,1.74493673,139.96,139.9,6.7423432]
[1767910107579,8.18183673,139.96,139.9,6.7423432]
[1767910109477,1.74493673,139.96,139.9,6.7423432]
[1767910110783,1.74493673,139.96,139.91,6.42402945]
[1767910114083,1.74493673,139.96,139.92,5.1549389]
[1767910114283,1.74493673,139.96,139.93,5.1549389]
[1767910114474,1.74493673,139.96,139.94,5.1549389]
[1767910114769,1.74493673,139.96,139.91,6.42402945]
[1767910116784,1.74493673,139.96,139.91,6.73741763]
[1767910123396,1.74493673,139.94,139.89,6.73741763]
[1767910123689,1.74493673,139.94,139.89,0.31338818]
[1767910123884,8.18273673,139.94,139.89,0.31338818]
[1767910124392,0.04807363,139.93,139.89,0.31338818]
[1767910125794,84.52807363,139.93,139.89,0.31338818]
[1767910128292,84.52807363,139.93,139.88,6.42402945]
[1767910128507,84.52807363,139.93,139.87,6.73741763]
[1767910128702,84.52807363,139.93,139.88,0.31338818]
[1767910129305,90.96627363,139.93,139.88,0.31338818]
[1767910131007,84.5,139.92,139.88,0.31338818]
[1767910131404,6.48627363,139.93,139.88,0.31338818]
[1767910131608,84.5,139.92,139.88,0.31338818]
[1767910140221,84.5,139.92,139.88,6.75378818]
[1767910140420,84.5,139.92,139.88,0.31338818]
[1767910142516,84.5,139.92,139.86,13.25091927]
[1767910143718,1.74493673,139.91,139.85,6.49141757]
[1767910143917,1.74493673,139.91,139.84,6.80981927]
[1767910144215,1.74493673,139.91,139.84,0.3184017]
[1767910144421,1.74493673,139.91,139.84,6.80981927]
[1767910144612,1.74493673,139.89,139.82,0.3184017]
[1767910144816,84.5,139.88,139.82,0.3184017]
[1767910145922,1.79198144,139.89,139.82,6.7616017]
[1767910146122,84.5,139.88,139.82,6.7616017]
[1767910149424,84.5,139.88,139.8,0.3184017]
[1767910149627,84.52,139.87,139.8,0.3184017]
[1767910150124,84.52,139.87,139.82,6.7616017]
[1767910150424,84.52,139.87,139.82,6.81332143]
[1767910150818,86.26493673,139.87,139.82,0.05171973]
[1767910151017,84.52,139.87,139.82,0.05171973]
[1767910151219,86.26493673,139.87,139.82,0.05171973]
[1767910152627,84.52,139.87,139.82,0.05171973]
[1767910153720,87.25134778,139.87,139.82,0.05171973]
[1767910153928,87.25134778,139.87,139.78,0.31148212]
[1767910154228,87.25134778,139.93,139.82,0.31148212]
[1767910154424,93.68994778,139.93,139.82,0.31148212]
[1767910155428,9.16994778,139.93,139.84,6.4423]
[1767910155724,84.52,139.92,139.86,0.04780176]
[1767910157327,90.9587,139.92,139.86,0.04780176]
[1767910160630,2.73134778,139.91,139.82,6.4428]
[1767910160820,0.0476328,139.9,139.82,6.4428]
[1767910161522,6.4872328,139.9,139.82,6.4428]
[1767910162230,6.4872328,139.9,139.83,6.4428]
[1767910162432,6.4872328,139.9,139.81,0.31148212]
[1767910162632,6.4396,139.9,139.81,0.31148212]
[1767910163133,0.04733397,139.87,139.81,0.31148212]
[1767910163322,84.56733397,139.87,139.81,0.31148212]
[1767910164833,84.56733397,139.87,139.78,0.31148212]
[1767910165027,87.29868175,139.87,139.78,0.31148212]
[1767910165236,87.25134778,139.87,139.78,0.31148212]
[1767910165731,0.05122282,139.84,139.78,0.31148212]
[1767910169831,0.05122282,139.84,139.79,0.31148212]
[1767910173140,2.73134778,139.92,139.82,0.32026062]
[1767910173328,84.54,139.91,139.82,0.32026062]